bitfinex-derivatives/quotes_BTCF0:USTF0_20251009
["timestamp","ask_amount","ask_price","bid_price","bid_amount"]
[1760018198243,0.5241366,122430.0,122420.0,3.33062917]
[1760018198439,0.5241366,122430.0,122420.0,2.09512]
[1760018198744,0.5241366,122430.0,122420.0,0.1371733]
[1760018198945,0.5241366,122430.0,122420.0,2.9520133]
[1760018199347,0.41117,122430.0,122420.0,2.55498917]
[1760018199543,0.001,122430.0,122420.0,2.57173917]
[1760018199747,0.001,122430.0,122420.0,3.74669917]
[1760018199947,0.001,122430.0,122420.0,3.74665917]
[1760018200243,0.001,122430.0,122420.0,3.74661917]
[1760018200444,0.4434466,122430.0,122420.0,2.57169917]
[1760018200741,0.4434466,122430.0,122420.0,3.24809587]
[1760018200953,0.4434466,122430.0,122420.0,3.32978917]
[1760018201346,0.4434466,122430.0,122420.0,3.32970917]
[1760018201941,0.001,122430.0,122420.0,3.34645917]
[1760018202143,0.001,122430.0,122420.0,2.97169917]
[1760018202344,0.001,122430.0,122420.0,2.57169917]
[1760018202543,0.3618,122430.0,122420.0,3.34621917]
[1760018202751,0.3618,122430.0,122420.0,2.57169917]
[1760018202944,0.3618,122430.0,122420.0,3.34601917]
[1760018203138,0.3618,122430.0,122420.0,2.55486917]
[1760018203749,0.001,122430.0,122420.0,3.32902917]
[1760018203942,0.0826466,122430.0,122420.0,3.74577917]
[1760018204145,0.4930266,122430.0,122420.0,2.47317587]
[1760018204338,0.4930266,122430.0,122420.0,0.43377587]
[1760018204538,0.4930266,122430.0,122420.0,2.86916]
[1760018204741,0.4434466,122430.0,122420.0,3.24741587]
[1760018204951,0.4434466,122430.0,122420.0,2.57112917]
[1760018205145,0.4434466,122430.0,122420.0,3.24725587]
[1760018205749,0.4434466,122430.0,122420.0,3.32862917]
[1760018205948,0.4434466,122430.0,122420.0,2.55482917]
[1760018206148,0.4434466,122430.0,122420.0,3.24697587]
[1760018206352,0.001,122430.0,122420.0,2.57112917]
[1760018206546,0.3618,122430.0,122420.0,2.48947587]
[1760018206747,0.001,122430.0,122420.0,2.57112917]
[1760018206941,0.001,122430.0,122420.0,3.70540917]
[1760018207145,0.001,122430.0,122420.0,3.34460917]
[1760018207343,0.001,122430.0,122420.0,2.57112917]
[1760018207947,0.001,122430.0,122420.0,3.34432917]
[1760018208149,0.001,122430.0,122420.0,3.74432917]
[1760018208348,0.001,122430.0,122420.0,4.10512917]
[1760018208551,0.3608,122450.0,122440.0,0.1574599]
[1760018208752,0.3608,122460.0,122450.0,0.1635432]
[1760018208950,0.3608,122460.0,122450.0,0.54179907]
[1760018209349,0.3608,122460.0,122450.0,1.31455907]
[1760018209653,0.3608,122460.0,122450.0,2.49944587]
[1760018209855,0.39292,122460.0,122450.0,2.46896587]
[1760018210154,0.84547,122460.0,122450.0,0.05143]
[1760018210359,0.44547,122460.0,122450.0,0.82411]
[1760018210545,0.44547,122460.0,122450.0,1.20236587]
[1760018210855,0.84547,122460.0,122450.0,0.82399]
[1760018211354,0.9270966,122460.0,122450.0,0.42968587]
[1760018211559,0.8949766,122460.0,122450.0,1.20196587]
[1760018211855,0.4424266,122460.0,122450.0,1.30880907]
[1760018212046,0.4424266,122460.0,122450.0,0.45501587]
[1760018212263,0.4424266,122460.0,122450.0,1.22717587]
[1760018212449,0.4949766,122460.0,122450.0,0.42968587]
[1760018212656,0.5270966,122460.0,122450.0,1.20180587]
[1760018212952,0.5270966,122460.0,122450.0,0.42968587]
[1760018213148,0.5270966,122460.0,122450.0,1.20152587]
[1760018213546,0.5270966,122460.0,122450.0,0.42968587]
[1760018213742,0.3608,122460.0,122450.0,0.45501587]
[1760018213942,0.84547,122460.0,122450.0,0.82307]
[1760018214142,0.9270966,122460.0,122450.0,0.82299]
[1760018214554,0.9270966,122460.0,122450.0,0.05143]
[1760018214755,0.9270966,122460.0,122450.0,0.82299]
[1760018215049,0.9270966,122460.0,122450.0,0.82287]
[1760018215354,0.84547,122460.0,122450.0,0.82367]
[1760018215554,0.9270966,122460.0,122450.0,0.82367]
[1760018216057,0.9270966,122460.0,122450.0,0.82267]
[1760018216247,0.9270966,122460.0,122450.0,0.42968587]
[1760018216451,0.84547,122460.0,122450.0,1.28255907]
[1760018216651,0.3608,122460.0,122450.0,1.31303907]
[1760018216852,0.3608,122470.0,122460.0,0.1330566]
[1760018217157,0.3608,122470.0,122460.0,0.52761247]
[1760018217351,0.3608,122470.0,122460.0,1.29841247]
[1760018217559,0.4949699,122470.0,122460.0,0.05143]
[1760018217757,0.4949699,122470.0,122460.0,1.28207247]
[1760018217953,0.4424199,122470.0,122460.0,1.28207247]
[1760018218153,0.0816199,122470.0,122460.0,1.28207247]
[1760018218453,0.5270899,122470.0,122460.0,0.82207]
[1760018218656,0.5280899,122470.0,122460.0,0.82207]
[1760018219163,0.0816332,122450.0,122440.0,2.64225698]
[1760018219358,0.4424332,122450.0,122440.0,2.64225698]
[1760018219558,0.4424332,122450.0,122440.0,2.92723421]
[1760018219860,0.4424332,122450.0,122440.0,3.38712998]
[1760018220055,0.3608,122450.0,122440.0,2.64221998]
[1760018220257,0.4424202,122470.0,122450.0,0.08191]
[1760018220469,0.5270902,122470.0,122460.0,0.05143]
[1760018220660,0.08467,122460.0,122450.0,0.05143]
[1760018220858,0.5270979,122460.0,122450.0,0.05143]
[1760018221161,0.5270966,122460.0,122450.0,0.9031032]
[1760018221354,0.5270966,122460.0,122450.0,1.19972587]
[1760018222058,0.5270966,122460.0,122450.0,0.42968587]
[1760018222363,0.5270966,122460.0,122450.0,1.19940587]
[1760018222561,0.3608,122460.0,122450.0,0.52761907]
[1760018222864,0.3618,122470.0,122460.0,0.1635366]
[1760018223057,0.4434199,122470.0,122460.0,0.54179247]
[1760018223258,0.3608,122480.0,122470.0,0.1060099]
[1760018223462,0.3608,122490.0,122480.0,0.1583732]
[1760018223762,0.3608,122490.0,122480.0,1.30622907]
[1760018224156,0.4424066,122490.0,122480.0,0.53662907]
[1760018224358,0.4424066,122490.0,122480.0,1.30606907]
[1760018224753,0.4424015,122500.0,122490.0,0.0816066]
[1760018224963,0.38415889,122500.0,122490.0,1.29687247]
[1760018225585,0.3608,122510.0,122500.0,0.1635099]
[1760018225760,0.02323033,122510.0,122500.0,0.92002164]
[1760018225961,0.02323033,122510.0,122500.0,1.68082164]
[1760018226167,0.39292,122550.0,122530.0,0.1493099]
[1760018226364,0.39292,122550.0,122540.0,0.42968587]
[1760018226365,0.46502834,122550.0,122540.0,0.42968587]
[1760018226565,0.38346174,122550.0,122540.0,2.58041917]
[1760018226767,0.38346174,122550.0,122540.0,3.34957917]
[1760018226968,0.38346174,122550.0,122540.0,0.46016587]
[1760018227264,0.46813174,122550.0,122540.0,0.05143]
[1760018227463,0.46813174,122550.0,122530.0,2.48232386]
[1760018227464,0.08467,122540.0,122530.0,2.15545799]
[1760018227667,0.08467,122540.0,122530.0,2.85907]
[1760018227668,0.46813174,122540.0,122530.0,2.85907]
[1760018227864,0.1662499,122530.0,122520.0,0.05143]
[1760018228064,0.1137066,122520.0,122510.0,2.03856]
[1760018228266,0.4745066,122520.0,122510.0,2.80768]
[1760018228974,0.4745066,122520.0,122510.0,3.18593587]
[1760018229174,0.4423866,122520.0,122510.0,3.18593587]
[1760018229472,0.4423866,122520.0,122510.0,3.20899587]
[1760018230267,0.4423866,122520.0,122510.0,3.14534252]
[1760018230470,0.4423866,122520.0,122510.0,0.38745252]
[1760018230771,0.4626921,122520.0,122510.0,1.17927252]
[1760018230965,0.3811055,122520.0,122510.0,1.26086582]
[1760018231169,0.3608,122530.0,122520.0,0.04979]
[1760018231471,0.46465352,122530.0,122520.0,0.81815]
[1760018231772,0.46465352,122530.0,122520.0,0.8996566]
[1760018231973,0.46465352,122530.0,122520.0,0.04979]
[1760018232272,0.46465352,122530.0,122520.0,1.23711912]
[1760018232273,0.38110352,122530.0,122520.0,1.23711912]
[1760018232570,0.38110352,122530.0,122520.0,1.26150912]
[1760018232783,0.3608,122530.0,122520.0,1.23711912]
[1760018233163,0.4934293,122550.0,122540.0,0.04979]
[1760018233362,0.54621689,122550.0,122540.0,0.38745252]
[1760018233568,0.54621689,122550.0,122540.0,0.04979]
[1760018233770,0.54621689,122550.0,122540.0,0.81819]
[1760018233967,0.46464759,122550.0,122540.0,0.96403677]
[1760018234184,0.43215759,122550.0,122540.0,0.96403677]
[1760018234473,0.51372419,122550.0,122540.0,0.19563677]
[1760018234673,0.43215759,122550.0,122540.0,0.96395677]
[1760018234877,0.38209759,122550.0,122540.0,0.56377929]
[1760018235069,0.38209759,122550.0,122540.0,1.33185929]
[1760018235885,0.38209759,122550.0,122540.0,0.53329929]
[1760018236075,0.02129759,122550.0,122540.0,1.33181929]
[1760018236376,0.02129759,122550.0,122540.0,1.73153929]
[1760018236575,0.02129759,122550.0,122540.0,0.96377929]
[1760018236775,0.02129759,122550.0,122540.0,0.62611677]
[1760018236972,0.46366419,122550.0,122540.0,0.11406347]
[1760018237177,0.54721419,122550.0,122540.0,0.78814347]
[1760018238173,0.46366419,122550.0,122540.0,0.96335677]
[1760018238374,0.38209759,122550.0,122540.0,0.54959929]
[1760018238574,0.38209759,122550.0,122540.0,1.31695929]
[1760018238777,0.38209759,122550.0,122540.0,1.31691929]
[1760018238975,0.02129759,122550.0,122540.0,0.94959929]
[1760018239177,0.02129759,122550.0,122540.0,1.71691929]
[1760018239376,0.02129759,122550.0,122540.0,1.72608933]
[1760018239585,0.001,122550.0,122540.0,1.71691929]
[1760018239775,0.0825666,122550.0,122540.0,0.94959929]
[1760018240079,0.001,122550.0,122540.0,0.94959929]
[1760018240276,0.001,122550.0,122540.0,1.71671929]
[1760018240973,0.0825666,122550.0,122540.0,0.86802599]
[1760018241280,0.38106602,122550.0,122540.0,3.75403929]
[1760018241481,0.38106602,122550.0,122540.0,3.75395929]
[1760018241780,0.3618,122550.0,122540.0,3.35383929]
[1760018241981,0.3618,122550.0,122540.0,3.35375929]
[1760018242584,0.38091563,122550.0,122540.0,3.33733929]
[1760018242782,0.3608,122550.0,122540.0,3.33833929]
[1760018243581,0.46346643,122550.0,122540.0,0.11506347]
[1760018243785,0.46346643,122550.0,122540.0,2.91858347]
[1760018243985,0.46346643,122550.0,122540.0,0.11506347]
[1760018244185,0.86346643,122550.0,122540.0,0.001]
[1760018244486,0.86346643,122550.0,122540.0,0.76708]
[1760018244675,0.86346643,122550.0,122540.0,0.05079]
[1760018244986,0.86346643,122550.0,122540.0,0.81679]
[1760018245178,0.94503303,122550.0,122540.0,0.05079]
[1760018245384,0.46148303,122550.0,122540.0,1.31686986]
[1760018245583,0.37991643,122550.0,122540.0,3.28952582]
[1760018245782,0.37991643,122550.0,122540.0,2.52376582]
[1760018246090,0.4423609,122560.0,122550.0,0.1544166]
[1760018246388,0.4423609,122560.0,122550.0,0.38745252]
[1760018246389,0.5259109,122560.0,122550.0,0.38745252]
[1760018246587,0.5259109,122560.0,122550.0,1.15317252]
[1760018246785,0.3608,122560.0,122550.0,0.49207912]
[1760018247205,0.3608,122560.0,122550.0,1.17631252]
[1760018247383,0.3608,122560.0,122550.0,1.25787912]
[1760018247583,0.3608,122560.0,122550.0,1.17631252]
[1760018247783,0.44435,122560.0,122550.0,0.04979]
[1760018247986,0.3608,122560.0,122550.0,0.49207912]
[1760018248287,0.41186,122560.0,122550.0,0.38745252]
[1760018248487,0.44435,122560.0,122550.0,0.81543]
[1760018248790,0.84435,122560.0,122550.0,0.81531]
[1760018249288,0.84435,122560.0,122550.0,0.04979]
[1760018249592,0.08355,122550.0,122540.0,0.45225444]
[1760018249793,0.44435,122550.0,122540.0,1.21717444]
[1760018250088,0.44435,122550.0,122540.0,0.45225444]
[1760018250291,0.44435,122550.0,122540.0,0.87995192]
[1760018250493,0.44435,122550.0,122540.0,0.51051736]
[1760018250684,0.41186,122550.0,122540.0,1.35721066]
[1760018250885,0.4423666,122550.0,122540.0,1.38027066]
[1760018251080,0.4423666,122550.0,122540.0,0.53357736]
[1760018251287,0.4423666,122550.0,122540.0,0.61515066]
[1760018251484,0.4423602,122560.0,122550.0,0.1476566]
[1760018251684,0.4423602,122560.0,122550.0,0.48531912]
[1760018251883,0.4423602,122560.0,122550.0,1.25043912]
[1760018252084,0.4423602,122560.0,122550.0,0.9127766]
[1760018252392,0.4423602,122560.0,122550.0,1.25043912]
[1760018252688,0.3608,122560.0,122550.0,0.48531912]
[1760018252890,0.3608,122560.0,122550.0,1.25015912]
[1760018253687,0.3608,122560.0,122550.0,0.48531912]
[1760018253887,0.3608,122560.0,122550.0,1.16847252]
[1760018254091,0.3608,122560.0,122550.0,0.1476566]
[1760018254292,0.3608,122560.0,122550.0,1.16843252]
[1760018254487,0.3608,122560.0,122550.0,1.24999912]
[1760018255095,0.3608,122560.0,122550.0,1.24975912]
[1760018255391,0.3608,122560.0,122550.0,0.48531912]
[1760018255591,0.3608,122570.0,122560.0,0.08156]
[1760018255783,0.3608,122570.0,122560.0,0.49340252]
[1760018255989,0.3608,122570.0,122560.0,1.25764252]
[1760018256492,0.3608,122570.0,122560.0,0.49340252]
[1760018256695,0.3608,122570.0,122560.0,0.41184252]
[1760018256696,0.3618,122570.0,122560.0,0.41184252]
[1760018256886,0.44535,122570.0,122560.0,0.38745252]
[1760018257189,0.41286,122570.0,122560.0,0.46901252]
[1760018257385,0.3618,122570.0,122560.0,1.25736252]
[1760018257591,0.3618,122570.0,122560.0,1.25728252]
[1760018258592,0.3618,122570.0,122560.0,1.25704252]
[1760018258792,0.3618,122570.0,122560.0,1.25696252]
[1760018259091,0.3618,122570.0,122560.0,0.49340252]
[1760018259287,0.001,122570.0,122560.0,0.49340252]
[1760018259490,0.3608,122580.0,122570.0,0.1598133]
[1760018259686,0.3608,122580.0,122570.0,0.49747582]
[1760018259887,0.3608,122580.0,122570.0,1.26107582]
[1760018260294,0.3608,122580.0,122570.0,0.50682352]
[1760018260490,0.3608,122580.0,122570.0,3.30734352]
[1760018260694,0.3618,122580.0,122570.0,3.30734352]
[1760018261602,0.41003,122600.0,122590.0,0.05047]
[1760018261790,0.80027,122600.0,122590.0,0.38813252]
[1760018262095,0.80027,122600.0,122590.0,1.15121252]
[1760018262495,0.80027,122600.0,122590.0,0.81355]
[1760018262697,0.80127,122600.0,122590.0,0.81355]
[1760018262888,0.80127,122600.0,122590.0,0.81331]
[1760018263191,0.7226,122600.0,122590.0,1.24873252]
[1760018263392,0.7226,122600.0,122590.0,0.48597252]
[1760018263589,0.7226,122600.0,122590.0,1.24869252]
[1760018263787,0.001,122600.0,122590.0,1.24869252]
[1760018265488,0.001,122600.0,122590.0,0.48597252]
[1760018265891,0.001,122600.0,122590.0,1.31379593]
[1760018266195,0.001,122600.0,122590.0,0.55159593]
[1760018266491,0.3618,122600.0,122590.0,3.35059593]
[1760018266995,0.001,122600.0,122590.0,3.35059593]
[1760018267195,0.3618,122600.0,122590.0,2.50685593]
[1760018267392,0.08136,122580.0,122570.0,0.04915]
[1760018267590,0.44216,122580.0,122570.0,0.81139]
[1760018267991,0.3608,122580.0,122570.0,1.25843582]
[1760018268694,0.3618,122580.0,122570.0,1.25843582]
[1760018269193,0.001,122580.0,122570.0,1.25843582]
[1760018269593,0.3618,122580.0,122570.0,1.25843582]
[1760018270400,0.3618,122580.0,122570.0,0.49615582]
[1760018270601,0.001,122580.0,122570.0,0.85695582]
[1760018270791,0.001,122580.0,122570.0,1.31621874]
[1760018271001,0.3618,122580.0,122570.0,1.31617874]
[1760018271404,0.3618,122580.0,122570.0,1.38299364]
[1760018271600,0.3618,122580.0,122570.0,2.57636034]
[1760018271805,0.79345,122580.0,122570.0,2.9142449]
[1760018272005,0.7618,122580.0,122570.0,2.9420349]
[1760018272309,0.7618,122580.0,122570.0,2.57636034]
[1760018272501,0.79345,122580.0,122570.0,3.31013034]
[1760018272803,0.001,122580.0,122570.0,3.41935364]
[1760018273007,0.3618,122580.0,122570.0,2.65791364]
[1760018273205,0.001,122580.0,122570.0,3.76133072]
[1760018273502,0.3608,122590.0,122580.0,0.1465567]
[1760018273705,0.3608,122590.0,122580.0,0.54256394]
[1760018274202,0.3608,122590.0,122580.0,1.24585922]
[1760018274408,0.3608,122590.0,122580.0,1.31893459]
[1760018274705,0.3608,122590.0,122580.0,1.31873459]
[1760018275006,0.3608,122590.0,122580.0,0.55729459]
[1760018275306,0.3618,122590.0,122580.0,1.31861459]
[1760018275705,0.3618,122590.0,122580.0,1.31845459]
[1760018277103,0.3618,122590.0,122580.0,0.55729459]
[1760018277304,0.3618,122590.0,122580.0,2.15882537]
[1760018277505,0.3618,122590.0,122580.0,3.33879459]
[1760018277906,0.44316,122590.0,122580.0,0.45988789]
[1760018278107,0.44316,122590.0,122580.0,1.22056789]
[1760018278405,0.41151,122590.0,122580.0,1.22056789]
[1760018278710,0.3618,122590.0,122580.0,1.22056789]
[1760018278908,0.3618,122590.0,122580.0,0.38681252]
[1760018279117,0.3618,122590.0,122580.0,1.14769252]
[1760018279305,0.3618,122590.0,122580.0,1.24489922]
[1760018280012,0.3618,122590.0,122580.0,0.55729459]
[1760018280215,0.001,122590.0,122580.0,1.67869459]
[1760018280413,0.001,122590.0,122580.0,1.31789459]
[1760018280609,0.3618,122590.0,122580.0,0.47574789]
[1760018280804,0.3618,122590.0,122580.0,0.55729459]
[1760018281108,0.44316,122590.0,122580.0,0.12222537]
[1760018281314,0.44316,122590.0,122580.0,0.88270537]
[1760018281814,0.44316,122590.0,122580.0,0.12222537]
[1760018282113,0.44316,122590.0,122580.0,0.88266537]
[1760018282310,0.44316,122590.0,122580.0,1.22032789]
[1760018282512,0.44316,122590.0,122580.0,0.45988789]
[1760018282715,0.44316,122590.0,122580.0,1.22008789]
[1760018282906,0.44316,122590.0,122580.0,0.38681252]
[1760018283104,0.44316,122590.0,122580.0,1.22843922]
[1760018283313,0.44316,122590.0,122580.0,0.12222537]
[1760018283506,0.84316,122590.0,122580.0,0.04915]
[1760018283704,0.84316,122590.0,122580.0,0.88222537]
[1760018283906,0.84316,122590.0,122570.0,0.13989027]
[1760018284111,0.84316,122590.0,122570.0,0.07307537]
[1760018284112,0.84216,122580.0,122570.0,0.07307537]
[1760018284309,0.84216,122580.0,122560.0,0.17560522]
[1760018284617,0.84216,122570.0,122560.0,0.07307537]
[1760018284810,0.84216,122570.0,122560.0,0.83299537]
[1760018284811,0.85114228,122570.0,122560.0,0.83299537]
[1760018285206,0.85114228,122570.0,122560.0,0.75992]
[1760018286013,0.85114228,122570.0,122550.0,0.07307537]
[1760018286213,0.44216,122560.0,122550.0,0.07307537]
[1760018286413,0.44216,122560.0,122550.0,0.83303537]
[1760018286610,0.44216,122560.0,122550.0,0.83299537]
[1760018287206,0.52372,122560.0,122550.0,0.83299537]
[1760018288111,0.52372,122560.0,122550.0,0.07307537]
[1760018288318,0.52372,122560.0,122550.0,0.77543537]
[1760018288715,1.26138252,122560.0,122550.0,0.07307537]
[1760018288921,1.26138252,122560.0,122550.0,0.04142687]
[1760018289220,0.03165,122530.0,122520.0,0.10252985]
[1760018289410,0.80296,122530.0,122520.0,0.10252985]
[1760018289617,1.20296,122530.0,122520.0,0.86248985]
[1760018290009,1.20296,122530.0,122520.0,0.75996]
[1760018290419,0.03108,122510.0,122500.0,0.15050985]
[1760018290622,0.44427,122510.0,122500.0,0.91046985]
[1760018291015,0.3608,122520.0,122510.0,0.1295722]
[1760018291215,0.3608,122520.0,122510.0,1.32976457]
[1760018291433,0.41319,122520.0,122510.0,0.48817237]
[1760018291617,0.44427,122520.0,122510.0,1.24817237]
[1760018291813,0.44427,122520.0,122510.0,0.48817237]
[1760018292013,0.44427,122520.0,122510.0,1.32976567]
[1760018292222,0.3608,122520.0,122510.0,1.36987482]
[1760018292422,0.3608,122520.0,122510.0,0.52828152]
[1760018292724,0.44427,122520.0,122510.0,0.91058985]
[1760018292932,0.44427,122520.0,122510.0,0.15050985]
[1760018293419,0.44427,122520.0,122510.0,0.91058985]
[1760018294628,0.5258566,122520.0,122510.0,0.91058985]
[1760018294822,0.5258566,122520.0,122510.0,0.52828152]
[1760018295017,0.5258566,122520.0,122510.0,1.28840152]
[1760018295424,0.5258566,122520.0,122510.0,0.91062985]
[1760018295918,0.5258566,122520.0,122510.0,0.86264985]
[1760018296925,0.5258566,122520.0,122510.0,0.91066985]
[1760018297129,0.5258566,122520.0,122510.0,0.80814]
[1760018297531,0.5258566,122520.0,122500.0,0.11327304]
[1760018297532,0.08347,122510.0,122500.0,0.11327304]
[1760018297728,0.44427,122510.0,122500.0,0.87343304]
[1760018298331,0.45339228,122510.0,122500.0,0.87343304]
[1760018298827,0.45339228,122510.0,122500.0,0.87443304]
[1760018299027,0.44427,122510.0,122500.0,0.87443304]
[1760018300125,0.44427,122510.0,122500.0,0.11427304]
[1760018300428,0.44427,122510.0,122500.0,0.001]
[1760018300429,1.30363497,122510.0,122500.0,0.001]
[1760018300824,1.30363497,122510.0,122500.0,0.04898]
[1760018300825,0.5258633,122510.0,122500.0,0.04898]
[1760018301030,0.5258633,122510.0,122500.0,0.80918]
[1760018301329,0.44427,122510.0,122500.0,1.26855157]
[1760018301629,0.44427,122510.0,122500.0,1.30002324]
[1760018301630,0.3608,122510.0,122500.0,1.30002324]
[1760018301823,0.3608,122510.0,122500.0,0.92225157]
[1760018302132,0.3608,122510.0,122500.0,1.68249157]
[1760018302328,0.3608,122510.0,122500.0,1.60089167]
[1760018302530,0.4423933,122510.0,122500.0,1.60089167]
[1760018302722,0.5258633,122510.0,122500.0,0.80922]
[1760018302925,0.5258633,122510.0,122500.0,0.1305799]
[1760018303128,0.4423933,122510.0,122500.0,1.28249157]
[1760018303430,0.3608,122510.0,122500.0,1.28249157]
[1760018304529,0.442392,122520.0,122510.0,0.07104]
[1760018304730,0.525862,122520.0,122510.0,0.04798]
[1760018305034,0.525862,122520.0,122510.0,0.80822]
[1760018305937,0.525862,122520.0,122510.0,0.04798]
[1760018306435,0.525862,122520.0,122510.0,0.69622]
[1760018306734,0.525862,122520.0,122510.0,0.04798]
[1760018307035,0.5258566,122520.0,122510.0,0.80822]
[1760018307433,0.5258566,122520.0,122510.0,0.04798]
[1760018307637,0.5258566,122520.0,122510.0,0.80822]
[1760018308537,0.5258566,122520.0,122510.0,0.8898133]
[1760018308734,0.5258566,122520.0,122510.0,0.80822]
[1760018309137,0.5258566,122520.0,122510.0,0.8898133]
[1760018309441,0.5258566,122520.0,122510.0,0.80822]
[1760018310839,0.5258566,122520.0,122510.0,0.04798]
[1760018311041,0.5258566,122520.0,122510.0,0.80822]
[1760018311341,0.5258566,122520.0,122510.0,1.18599167]
[1760018311938,0.5258566,122520.0,122510.0,0.42575167]
[1760018312144,0.5258566,122520.0,122510.0,1.26758497]
[1760018312347,0.3608,122520.0,122510.0,1.28148497]
[1760018312534,0.4423866,122520.0,122510.0,1.28148497]
[1760018313239,0.3608,122520.0,122510.0,1.68148497]
[1760018313836,0.3608,122520.0,122510.0,0.83965167]
[1760018314038,0.44427,122520.0,122510.0,1.59985167]
[1760018314238,0.3608,122520.0,122510.0,1.68144497]
[1760018314438,0.3608,122520.0,122510.0,0.92124497]
[1760018314746,0.3608,122520.0,122510.0,1.68144497]
[1760018315238,0.3608,122520.0,122510.0,1.3036733]
[1760018315445,0.3608,122520.0,122510.0,1.68144497]
[1760018315640,0.4423866,122520.0,122510.0,0.46188]
[1760018315847,0.4423866,122520.0,122510.0,1.68144497]
[1760018316043,0.3608,122520.0,122510.0,1.68144497]
[1760018316248,0.3608,122520.0,122510.0,1.75453124]
[1760018316544,0.3608,122520.0,122510.0,0.91273794]
[1760018316747,0.3608,122520.0,122510.0,1.75449124]
[1760018316950,0.3608,122520.0,122510.0,1.75549124]
[1760018317243,0.4423866,122520.0,122510.0,1.67389794]
[1760018317743,0.5258566,122520.0,122510.0,0.49983794]
[1760018317948,0.4423866,122520.0,122510.0,1.35549124]
[1760018318343,0.4947766,122520.0,122510.0,1.25899794]
[1760018318550,0.5258566,122520.0,122510.0,0.88222627]
[1760018318745,0.5258566,122520.0,122510.0,1.25999794]
[1760018318951,0.4423866,122520.0,122510.0,1.35549124]
[1760018319549,0.4423866,122520.0,122510.0,1.35545124]
[1760018319750,0.4423866,122520.0,122510.0,1.27385794]
[1760018319953,0.4423866,122520.0,122510.0,1.35545124]
[1760018320150,0.4423866,122520.0,122510.0,0.59533124]
[1760018320649,0.4423866,122520.0,122510.0,1.35545124]
[1760018322355,0.4423866,122520.0,122510.0,1.35445124]
[1760018322653,0.4423866,122520.0,122510.0,1.35545124]
[1760018323251,0.4423866,122520.0,122510.0,1.20073167]
[1760018323555,0.5241466,122520.0,122510.0,1.28932152]
[1760018323755,0.5241466,122520.0,122510.0,0.42675167]
[1760018323954,0.5241466,122520.0,122510.0,1.18679167]
[1760018324755,0.5241466,122520.0,122510.0,1.37091482]
[1760018324955,0.5241466,122520.0,122510.0,1.28932152]
[1760018325159,0.5241466,122520.0,122510.0,0.15150985]
[1760018325361,0.5241466,122520.0,122510.0,0.88234051]
[1760018325551,0.5241466,122520.0,122510.0,0.80902]
[1760018326157,0.5241466,122520.0,122510.0,0.88234186]
[1760018326763,0.5241466,122520.0,122510.0,1.26007353]
[1760018326971,0.3608,122520.0,122510.0,1.67988497]
[1760018327268,0.3608,122520.0,122510.0,1.75324209]
[1760018327567,0.3608,122520.0,122510.0,0.99324209]
[1760018328067,0.3608,122520.0,122510.0,1.75324209]
[1760018328262,0.4423866,122520.0,122510.0,0.99324209]
[1760018328463,0.4423866,122520.0,122510.0,0.83829167]
[1760018328667,0.4423866,122520.0,122510.0,1.78241482]
[1760018330168,0.4423866,122520.0,122510.0,0.91988497]
[1760018330370,0.4423866,122520.0,122510.0,1.67984497]
[1760018330866,0.4423866,122520.0,122510.0,0.9116452]
[1760018331166,0.5222666,122520.0,122510.0,0.04898]
[1760018331468,0.5222666,122520.0,122510.0,0.91146985]
[1760018331674,0.5222666,122520.0,122510.0,0.91142985]
[1760018331967,0.9222666,122520.0,122510.0,0.88226699]
[1760018332263,1.30003827,122520.0,122510.0,0.07436699]
[1760018332581,1.30003827,122520.0,122510.0,0.83428699]
[1760018332769,1.30003827,122520.0,122510.0,0.07436699]
[1760018332968,1.30003827,122520.0,122510.0,0.83428699]
[1760018333869,1.30003827,122520.0,122510.0,0.76092]
[1760018334768,0.9222666,122520.0,122510.0,0.04977]
[1760018335071,0.9222666,122520.0,122510.0,0.80969]
[1760018335466,0.9222666,122520.0,122510.0,0.76092]
[1760018336064,0.9222666,122520.0,122510.0,0.001]
[1760018336265,0.9222666,122520.0,122510.0,0.57236]
[1760018336869,1.30003827,122520.0,122510.0,0.001]
[1760018337075,1.30003827,122520.0,122510.0,0.76092]
[1760018337776,0.1614799,122500.0,122490.0,0.11277585]
[1760018337970,0.8830799,122500.0,122490.0,0.04877]
[1760018338275,0.1614866,122490.0,122480.0,0.49990866]
[1760018338474,0.5222866,122490.0,122480.0,0.12213699]
[1760018338674,0.5222866,122490.0,122480.0,0.94814318]
[1760018339075,0.5222866,122490.0,122480.0,1.32591485]
[1760018339269,0.5222866,122490.0,122480.0,0.56603485]
[1760018339471,0.5222866,122490.0,122480.0,1.32591485]
[1760018340371,0.5222866,122490.0,122480.0,1.32587485]
[1760018340565,0.5222866,122490.0,122480.0,0.56603485]
[1760018340770,0.5222866,122490.0,122480.0,1.32891485]
[1760018340967,0.5222866,122490.0,122480.0,0.95114318]
[1760018341168,0.5222866,122490.0,122480.0,0.87777619]
[1760018341376,0.4935566,122490.0,122480.0,0.52005786]
[1760018341578,0.4935566,122490.0,122480.0,1.27989786]
[1760018342377,0.5222866,122490.0,122480.0,1.25550786]
[1760018342774,0.5222866,122490.0,122480.0,0.49566786]
[1760018342977,0.90005827,122490.0,122480.0,0.07636699]
[1760018343182,1.30005827,122490.0,122480.0,0.07636699]
[1760018343376,1.30005827,122490.0,122480.0,0.04890849]
[1760018343584,0.07988,122480.0,122470.0,5.835e-05]
[1760018343877,1.21845167,122480.0,122470.0,5.835e-05]
[1760018344675,0.07988,122460.0,122450.0,0.86236985]
[1760018344876,0.80148,122460.0,122450.0,0.10252985]
[1760018345182,1.20148,122460.0,122450.0,0.86236985]
[1760018345382,1.20148,122460.0,122450.0,0.91113985]
[1760018345383,0.8831066,122460.0,122450.0,0.91113985]
[1760018345578,0.88316816,122460.0,122450.0,0.91113985]
[1760018345773,0.88316816,122460.0,122450.0,0.15129985]
[1760018345978,0.88316816,122460.0,122450.0,0.91113985]
[1760018346479,0.88316816,122460.0,122450.0,0.75984]
[1760018346780,0.1615199,122440.0,122430.0,0.59491131]
[1760018346981,0.8831199,122440.0,122430.0,0.59491131]
[1760018347283,0.8831199,122440.0,122430.0,0.91113985]
[1760018347877,0.8831199,122440.0,122430.0,0.15129985]
[1760018348084,0.8831199,122440.0,122430.0,0.91117985]
[1760018348478,0.8831199,122440.0,122430.0,0.80865]
[1760018349881,0.8831199,122440.0,122430.0,1.18642167]
[1760018350881,0.3608,122450.0,122440.0,0.02263]
[1760018351086,0.4424333,122450.0,122440.0,0.45109167]
[1760018351283,0.4424333,122450.0,122440.0,1.31350152]